bitfinex-derivatives/quotes_ETHF0:USTF0_20250518
["timestamp","ask_amount","ask_price","bid_price","bid_amount"]
[1747593964699,0.80799,2474.2,2474.1,10.153]
[1747593965694,5.7252,2474.3,2474.0,1.2049476]
[1747593965695,0.80803,2474.1,2474.0,1.2049476]
[1747593966094,0.80806,2474.0,2473.9,10.153]
[1747593966288,3.18186,2474.0,2473.9,10.153]
[1747593966693,2.3738,2474.0,2473.9,10.153]
[1747593966895,3.2078,2474.3,2473.9,10.153]
[1747593967201,0.80803,2474.1,2474.0,10.09]
[1747593967398,5.5816,2474.3,2473.9,10.09]
[1747593967704,3.18186,2474.0,2473.9,10.09]
[1747593968297,0.80813,2473.8,2473.7,10.09]
[1747593968795,3.36943,2473.8,2473.7,10.09]
[1747593970002,5.77373,2473.8,2473.7,10.09]
[1747593970398,0.80822,2473.5,2473.4,40.748]
[1747593970598,0.80822,2473.5,2473.4,50.839]
[1747593970805,0.80822,2473.5,2473.4,10.091]
[1747593971101,2.5613,2473.5,2473.4,10.091]
[1747593971304,2.4274,2473.9,2473.4,10.091]
[1747593971500,2.3722,2474.0,2473.7,0.80815]
[1747593971698,3.2078,2474.1,2473.9,0.80807]
[1747593971894,3.2078,2474.1,2474.0,12.6158]
[1747593972104,3.2078,2474.1,2474.0,13.42386]
[1747593972302,2.49648003,2474.7,2474.0,20.8236]
[1747593972606,2.46438003,2474.7,2474.3,3.2078]
[1747593972906,0.80787,2474.6,2474.4,2.5248]
[1747593973202,2.46438003,2474.7,2474.5,10.091]
[1747593973404,3.27221003,2474.7,2474.6,2.5248]
[1747593973602,2.46438003,2474.7,2474.6,2.5248]
[1747593973997,3.27221003,2474.7,2474.6,2.5248]
[1747593974205,2.46438003,2474.7,2474.6,2.5248]
[1747593974702,0.09218003,2474.7,2474.6,6.54046]
[1747593974903,3.18986704,2475.3,2474.6,10.7326]
[1747593975095,3.18986704,2475.3,2475.2,4.01547]
[1747593975292,3.18986704,2475.3,2475.2,14.10647]
[1747593975805,3.18986704,2475.3,2475.2,19.06037]
[1747593976106,1.73196781,2475.3,2475.2,19.06037]
[1747593977093,2.51187706,2475.9,2475.2,29.87483962]
[1747593977295,2.51187706,2475.9,2475.5,3.2078]
[1747593977606,2.51187706,2475.9,2475.8,4.01527]
[1747593977801,2.51187706,2475.9,2475.8,14.10427]
[1747593979212,2.51187706,2475.9,2475.5,10.087]
[1747593979408,2.01877,2475.7,2474.8,3.2078]
[1747593979599,0.80772,2475.1,2474.9,10.087]
[1747593979805,0.80765,2475.3,2474.9,14.4294976]
[1747593980011,0.80771,2475.1,2474.9,13.6217476]
[1747593980304,0.80773,2475.0,2474.9,1.2049476]
[1747593980605,3.25253,2475.0,2474.9,1.2049476]
[1747593980807,8.25253,2475.0,2474.9,1.2049476]
[1747593981202,8.25253,2475.0,2474.9,0.3821276]
[1747593981600,0.8078,2474.8,2474.7,1.61103334]
[1747593981806,4.0156,2474.8,2474.7,1.61103334]
[1747593982005,9.0156,2474.8,2474.7,1.61103334]
[1747593982808,4.0156,2474.8,2474.4,10.89492]
[1747593983111,4.0156,2474.8,2474.5,2.3104]
[1747593983112,3.25265,2474.7,2474.5,2.3104]
[1747593983406,0.80786,2474.6,2474.5,2.3104]
[1747593983605,0.80796,2474.3,2474.2,40.724]
[1747593983802,0.80794,2474.4,2474.2,50.811]
[1747593983999,4.01569,2474.6,2474.2,50.811]
[1747593984309,2.4566,2474.5,2474.3,3.32826]
[1747593984506,2.4566,2474.5,2474.3,2.5203]
[1747593984708,2.4546,2475.1,2474.4,3.2078]
[1747593984905,3.2078,2475.7,2475.0,3.2078]
[1747593985104,2.4566,2475.5,2475.1,12.6073]
[1747593985313,3.2078,2475.7,2475.1,12.6073]
[1747593985609,3.99741704,2475.6,2475.2,3.32795]
[1747593985806,2.4566,2475.5,2475.4,0.8076]
[1747593986007,2.553,2476.0,2475.6,0.80752]
[1747593986212,2.54878003,2475.9,2475.7,12.6073]
[1747593986710,2.54878003,2475.9,2475.8,2.5103]
[1747593987113,2.54878003,2475.9,2475.8,3.31777]
[1747593987114,0.09218003,2475.9,2475.8,3.31777]
[1747593987307,0.09218003,2475.9,2475.8,2.5103]
[1747593987508,0.09218003,2475.9,2475.8,3.31777]
[1747593987915,0.09218003,2475.9,2475.8,2.5103]
[1747593988116,0.09218003,2475.9,2475.8,3.31777]
[1747593988318,0.09218003,2475.9,2475.8,2.5103]
[1747593989520,0.09218003,2475.9,2475.7,3.3108]
[1747593989714,2.555,2475.8,2475.7,3.3108]
[1747593990010,0.09218003,2475.9,2475.8,0.80747]
[1747593990216,0.09218003,2475.9,2475.8,2.3453]
[1747593990416,0.89962003,2475.9,2475.8,2.3453]
[1747593990618,0.89962003,2475.9,2475.8,10.086]
[1747593990818,0.09218003,2475.9,2475.8,10.086]
[1747593991119,0.09218003,2475.9,2475.8,12.4313]
[1747593991416,0.09218003,2475.9,2475.8,13.23877]
[1747593992511,2.555,2476.5,2476.4,0.80728]
[1747593992816,0.80718,2476.7,2476.4,10.89228]
[1747593993009,2.4984,2476.7,2476.4,2.3225]
[1747593993215,0.80721,2476.6,2476.5,10.085]
[1747593993610,0.80728,2476.4,2476.3,3.2078]
[1747593993817,0.80728,2476.4,2476.3,10.083]
[1747593994012,3.30566,2476.5,2476.3,10.083]
[1747593994225,2.4984,2476.5,2476.3,13.2908]
[1747593994517,2.4984,2476.5,2476.4,2.3225]
[1747593994823,3.30564,2476.5,2476.4,2.3225]
[1747593995012,3.30564,2476.5,2476.3,13.2908]
[1747593995212,3.30564,2476.5,2476.3,10.083]
[1747593995515,2.4984,2476.5,2476.2,2.3225]
[1747593995707,0.80728,2476.4,2476.3,10.083]
[1747593996410,2.4984,2476.5,2476.3,10.8903]
[1747593996617,0.09218003,2476.6,2476.3,13.2908]
[1747593996814,0.09218003,2476.6,2476.4,2.5604]
[1747593997013,0.09218003,2476.6,2476.5,10.023]
[1747593997210,0.09218003,2476.6,2476.3,13.2308]
[1747593997519,2.48808003,2476.6,2476.4,3.36766]
[1747593997720,2.48808003,2476.6,2476.4,2.5604]
[1747593998111,0.09218003,2476.6,2476.5,0.80724]
[1747593999822,0.09218003,2476.6,2476.5,10.82924]
[1747594000019,0.09218003,2476.6,2476.5,13.23494]
[1747594000521,0.09218003,2476.6,2476.5,12.4277]
[1747594000725,0.89939003,2476.6,2476.5,10.022]
[1747594000924,0.80728,2476.4,2476.3,3.2078]
[1747594001124,0.80728,2476.4,2476.3,10.022]
[1747594001315,2.4273,2476.5,2476.3,10.022]
[1747594002015,2.4273,2476.5,2476.3,13.2298]
[1747594002216,2.4273,2476.5,2476.4,0.80728]
[1747594002415,2.4273,2476.5,2476.4,3.32188]
[1747594002812,0.09218003,2476.6,2476.5,0.80724]
[1747594005618,0.09218003,2476.6,2476.5,3.10674]
[1747594006220,0.09218003,2476.6,2476.5,5.51904]
[1747594006928,0.09218003,2476.6,2476.5,7.93994]
[1747594007526,0.09218003,2476.6,2476.5,17.96094]
[1747594008423,0.09218003,2476.6,2476.5,7.93994]
[1747594008731,3e-08,2476.6,2476.5,32.95694]
[1747594009816,3e-08,2476.6,2476.5,7.93994]
[1747594010019,0.80725,2476.5,2476.4,2.2209]
[1747594010220,3.19515,2476.5,2476.4,2.2209]
[1747594010421,3.19515,2476.5,2476.4,12.2409]
[1747594010823,3.19515,2476.5,2475.9,16.36403334]
[1747594010824,9.40604,2476.5,2475.9,11.63103334]
[1747594011017,0.80741,2476.0,2475.9,11.63103334]
[1747594011218,3.2078,2476.0,2474.9,10.02]
[1747594011425,3.2078,2475.4,2474.9,10.02]
[1747594011626,2.4336,2475.3,2474.9,10.02]
[1747594012023,3.2078,2475.2,2474.7,6.4499647]
[1747594012228,0.80775,2475.0,2474.7,3.9877647]
[1747594012423,0.8078,2474.8,2474.7,3.9877647]
[1747594012630,0.8078,2474.8,2474.7,14.0087647]
[1747594012824,2.4336,2474.9,2474.7,14.0087647]
[1747594013026,2.4336,2474.9,2474.7,3.9877647]
[1747594013332,0.8078,2474.8,2474.7,3.9877647]
[1747594013532,0.8079,2474.5,2474.4,11.35743788]
[1747594013731,4.01567,2474.6,2474.4,11.35743788]
[1747594013934,0.8079,2474.5,2474.4,11.35743788]
[1747594014935,5.8079,2474.5,2474.4,1.33643788]
[1747594015128,5.0,2474.5,2474.4,1.33643788]
[1747594015435,15.7939,2474.5,2474.4,1.33643788]
[1747594016440,5.0,2474.5,2474.4,1.33643788]
[1747594016641,13.1908,2474.6,2474.4,1.33643788]
[1747594016840,2.4523,2474.5,2474.4,2.14436788]
[1747594017139,3.2078,2474.6,2474.5,0.8079]
[1747594017441,3.2078,2474.6,2474.5,3.1438]
[1747594018433,3.2078,2474.6,2474.4,1.33643788]
[1747594018639,2.3897,2474.5,2474.4,10.025]
[1747594019033,2.3897,2474.5,2474.0,0.80804]
[1747594019237,0.808,2474.2,2474.1,10.025]
[1747594019740,8.1977,2474.2,2474.1,10.025]
[1747594021140,18.1737,2474.2,2474.1,10.025]
[1747594021438,0.80841,2473.0,2472.9,3.2078]
[1747594021649,3.2078,2473.1,2472.8,10.026]
[1747594021937,2.3268,2472.9,2472.3,10.026]
[1747594022142,0.80856,2472.5,2472.3,10.026]
[1747594022341,2.3268,2472.4,2472.3,10.83462]
[1747594022844,2.3268,2472.4,2472.3,10.026]
[1747594023046,3.2078,2472.7,2472.4,0.80858]
[1747594023245,3.2078,2472.7,2472.4,3.23868]
[1747594023445,2.3678,2472.6,2472.4,3.23868]
[1747594023655,0.80858,2472.4,2472.3,10.026]
[1747594023938,2.3678,2472.6,2472.3,10.026]
[1747594024144,12.3438,2472.6,2472.3,10.026]
[1747594024443,12.3438,2472.6,2472.3,10.8346]
[1747594024639,3.17633,2472.6,2472.3,10.026]
[1747594024844,2.3678,2472.6,2472.3,10.026]
[1747594025044,3.17632,2472.6,2472.3,10.026]
[1747594025238,2.3678,2472.6,2472.3,10.83461]
[1747594026148,2.3678,2472.6,2472.4,0.80857]
[1747594026451,2.3678,2472.6,2472.3,10.026]
[1747594026745,4.01638,2472.4,2472.3,10.026]
[1747594027143,3.2078,2472.4,2472.3,10.83462]
[1747594027335,3.2078,2472.7,2472.3,10.026]
[1747594027539,2.421,2473.1,2472.4,7.76755]
[1747594027746,2.421,2473.1,2472.5,2.02139]
[1747594027940,2.421,2473.1,2472.6,0.80849]
[1747594028145,3.2078,2473.0,2472.4,2.5183]
[1747594028449,4.01629,2472.7,2472.5,9.973]
[1747594028745,2.421,2472.6,2472.5,10.78154]
[1747594029052,2.421,2472.6,2472.5,9.973]
[1747594029344,2.421,2472.6,2472.5,10.78155]
[1747594029539,2.421,2472.6,2472.5,9.973]
[1747594029739,2.421,2472.6,2471.8,5.73]
[1747594029941,0.8087,2472.1,2471.9,9.973]
[1747594030145,0.80888,2471.5,2471.4,3.2078]
[1747594030342,0.80899,2471.2,2470.6,2.4785]
[1747594030539,3.2078,2471.2,2470.6,15.03250001]
[1747594030739,9.967,2471.3,2470.6,12.55400001]
[1747594030941,3.2078,2471.2,2470.9,0.80906]
[1747594031251,3.2078,2471.2,2470.7,2.4785]
[1747594031442,3.2078,2470.9,2470.7,5.05750001]
[1747594031637,3.2078,2470.9,2470.7,2.4785]
[1747594032241,3.2078,2471.2,2470.7,2.4785]
[1747594032441,13.1718,2471.2,2470.9,0.80907]
[1747594032637,3.2078,2471.2,2470.7,2.4785]
[1747594032847,3.2078,2471.2,2471.0,0.80904]
[1747594033047,5.0287,2471.2,2471.0,0.80904]
[1747594033540,0.80905,2471.0,2470.6,0.80916]
[1747594033844,15.4546,2470.9,2470.3,2.4842]
[1747594034038,0.80924,2470.4,2469.9,0.80938]
[1747594034251,12.2468,2470.3,2470.1,0.80932]
[1747594034442,12.2468,2470.3,2469.9,5.06320001]
[1747594034649,12.2468,2470.3,2470.2,0.80931]
[1747594034845,12.2468,2470.3,2470.1,0.80932]
[1747594035144,3.2078,2470.2,2469.8,9.978]
[1747594035343,2.4905,2470.1,2469.8,9.978]
[1747594035543,2.4905,2470.1,2469.8,0.80942]
[1747594035750,3.29984,2470.1,2469.7,0.80945]
[1747594035947,2.4905,2470.1,2469.8,0.80943]
[1747594036250,3.2078,2470.2,2470.1,0.80934]
[1747594036453,3.2078,2470.2,2470.1,10.79034]
[1747594036641,3.2078,2470.2,2470.1,3.38834001]
[1747594036841,4.01712,2470.2,2469.8,13.24281]
[1747594037152,3.2078,2470.2,2469.8,2.4524]
[1747594037339,2.4905,2470.1,2469.8,2.4524]
[1747594037645,3.2078,2469.9,2469.7,10.79046]
[1747594037946,3.2078,2469.9,2469.7,9.981]
[1747594038153,2.4905,2469.9,2469.8,0.80944]
[1747594038448,3.2078,2470.7,2470.0,2.02341]
[1747594038647,0.80911,2470.9,2470.4,0.80922]
[1747594038843,0.80916,2470.7,2470.5,12.428]
[1747594039049,0.80917,2470.6,2470.5,12.428]
[1747594039242,0.80917,2470.6,2470.5,2.447]
[1747594039448,9.01699,2470.6,2470.0,3.2078]
[1747594039652,2.3963,2470.5,2470.0,3.2078]
[1747594039946,2.3963,2470.5,2469.9,3.25639]
[1747594040147,2.3963,2470.5,2469.9,2.447]
[1747594040353,0.80937,2470.0,2469.9,2.447]
[1747594040546,13.1688,2470.2,2469.8,9.983]
[1747594040745,2.3963,2470.1,2469.9,2.447]
[1747594041149,2.3963,2470.1,2470.0,0.80937]
[1747594041355,9.96,2470.3,2470.2,0.8093]
[1747594041557,4.01702,2470.5,2470.0,3.2078]
[1747594041558,3.2078,2470.5,2470.0,3.2078]
[1747594041857,13.97602,2470.5,2470.2,0.80929]
[1747594042048,13.1668,2470.5,2470.1,2.4397]
[1747594042249,0.80931,2470.2,2470.1,2.4397]
[1747594042452,3.2078,2470.2,2469.8,9.983]
[1747594042746,0.80937,2470.0,2469.9,2.4397]
[1747594042950,2.2707,2470.1,2469.9,2.4397]
[1747594043146,3.2078,2470.5,2470.0,3.2078]
[1747594043351,9.959,2470.4,2470.2,0.80929]
[1747594043553,10.76824,2470.4,2470.3,2.4397]
[1747594043757,4.01702,2470.5,2470.3,2.4397]
[1747594044054,0.80924,2470.4,2470.3,2.4397]
[1747594044256,2.02319,2470.3,2469.3,5.588]
[1747594044450,0.80952,2469.6,2469.4,4.98520001]
[1747594044647,0.80949,2469.7,2469.4,5.79476001]
[1747594044848,0.80949,2469.7,2469.4,5.79475001]
[1747594045047,13.1648,2469.9,2469.4,4.98520001]
[1747594045252,13.1648,2469.9,2469.4,5.79475001]
[1747594045458,0.80948,2469.7,2469.4,5.79475001]
[1747594045658,0.80948,2469.7,2469.5,2.3124]
[1747594045961,3.08306,2469.8,2469.6,0.8095]
[1747594046148,3.08306,2469.8,2469.5,2.3124]
[1747594046149,0.80949,2469.7,2469.5,2.3124]
[1747594046560,12.2286,2469.8,2469.5,2.3124]
[1747594046756,0.80947,2469.7,2469.5,2.3124]
[1747594046950,0.8095,2469.6,2469.5,2.3124]
[1747594047251,3.08309,2469.7,2469.5,2.3124]
[1747594047457,0.8095,2469.6,2469.5,2.3124]
[1747594047654,3.1778,2469.6,2469.3,5.588]
[1747594047851,3.1778,2469.6,2469.3,3.2078]
[1747594047852,0.80957,2469.4,2469.3,3.2078]
[1747594048252,5.80957,2469.4,2469.3,3.2078]
[1747594048663,0.80973,2468.9,2468.8,9.988]
[1747594048956,0.80976,2468.8,2468.4,14.00567]
[1747594049154,2.3683,2468.8,2468.4,3.2078]
[1747594049462,3.17809,2468.8,2468.4,4.01768]
[1747594049760,9.952,2468.7,2468.5,2.3585]
[1747594049954,0.80983,2468.6,2468.5,2.3585]
[1747594050160,12.3203,2468.7,2468.5,2.3585]
[1747594050552,13.13012,2468.7,2468.5,2.3585]
[1747594050853,3.2078,2469.0,2468.5,3.16835]
[1747594051060,3.2078,2469.0,2468.5,4.93750001]
[1747594051250,2.3392,2469.5,2468.7,2.0245]
[1747594051251,2.438,2469.4,2468.7,2.0245]
[1747594051557,13.1578,2470.2,2469.1,3.2078]
[1747594051755,1.59878711,2469.7,2469.5,0.80953]
[1747594052062,1.59878711,2469.7,2469.6,2.2872]
[1747594052262,1.59878711,2469.7,2469.6,3.0967]
[1747594052453,1.59878711,2469.7,2469.6,5.67570001]
[1747594053053,2.40342073,2469.9,2469.6,5.67570001]
[1747594053054,2.40342073,2469.9,2469.8,0.80944]
[1747594053256,2.40342073,2469.9,2469.8,4.01724]
[1747594053458,2.40342073,2469.9,2469.8,6.59624001]
[1747594053862,2.40342073,2469.9,2469.8,5.78680001]
[1747594054161,2.40342073,2469.9,2469.8,3.38844001]
[1747594054364,0.80936,2470.1,2469.8,3.38844001]
[1747594054565,2.438,2470.4,2470.0,0.80936]
[1747594054866,3.2078,2470.5,2470.1,3.18122]
[1747594055159,0.80927,2470.3,2470.2,2.3719]
[1747594055365,3.2078,2470.5,2470.2,2.3719]
[1747594055366,0.80926,2470.4,2470.2,2.3719]
[1747594055561,5.6884,2470.5,2470.2,2.3719]
[1747594055760,0.80926,2470.4,2470.2,2.3719]
[1747594056164,5.6884,2470.5,2469.9,15.5514]
[1747594056371,2.4806,2470.3,2469.9,14.92260001]
[1747594056565,2.4806,2470.3,2470.0,2.3719]
[1747594056862,3.2078,2470.5,2470.4,0.80924]
[1747594057172,2.3955,2470.8,2470.4,9.945]
[1747594057466,0.80924,2470.4,2470.3,2.3965]
[1747594057664,0.80931,2470.2,2470.1,2.3965]
[1747594057967,0.80937,2470.0,2469.9,9.945]
[1747594058359,0.80947,2469.7,2469.6,2.3965]
[1747594058563,3.2078,2469.8,2469.1,2.2584]
[1747594058767,0.80963,2469.2,2469.1,2.3965]
[1747594059360,0.80967,2469.1,2469.0,1.18972624]
[1747594059566,3.20517,2469.1,2469.0,1.18972624]
[1747594059866,8.20517,2469.1,2469.0,1.18972624]
[1747594060769,0.8098,2468.7,2468.6,9.946]
[1747594061668,0.80981,2468.7,2468.5,2.3413]
[1747594061859,0.79843822,2468.6,2468.5,2.3413]
[1747594062059,0.80996,2468.2,2468.1,40.805]
[1747594062265,0.80999,2468.1,2468.0,5.5491]
[1747594062466,0.80999,2468.1,2468.0,8.12810001]
[1747594062766,0.81009,2467.8,2467.7,11.13572624]
[1747594062969,0.81009,2467.8,2467.7,1.18972624]
[1747594063174,10.74809,2467.8,2467.7,1.18972624]
[1747594063377,9.938,2467.8,2467.7,1.18972624]
[1747594064176,3.16307,2467.9,2467.7,1.18972624]
[1747594064177,9.937,2467.9,2467.7,1.18972624]
[1747594064667,9.937,2467.9,2467.8,2.279]
[1747594064866,13.95385,2468.0,2467.8,2.279]
[1747594065173,0.81006,2467.9,2467.8,2.279]
[1747594065372,2.353,2467.9,2467.8,2.279]
[1747594065581,13.09906,2467.9,2467.8,2.279]
[1747594065873,12.289,2467.9,2467.8,2.279]
[1747594066678,13.09906,2467.9,2467.8,2.279]
[1747594066877,3.2078,2468.0,2467.8,2.279]
[1747594067072,0.6077,2468.2,2468.1,0.80999]
[1747594067575,0.6077,2468.2,2468.1,3.38899001]
[1747594067881,0.6077,2468.2,2468.1,2.57900001]
[1747594068473,0.6077,2468.2,2468.1,3.2078]
[1747594068682,0.81002,2468.1,2467.8,3.2078]
[1747594068875,0.81003,2468.0,2467.9,2.355]
[1747594069071,0.81013,2467.7,2467.6,9.95]
[1747594069279,0.81013,2467.7,2467.6,12.52900001]
[1747594069478,0.81013,2467.7,2467.6,14.96980001]
[1747594069880,0.81013,2467.7,2467.6,12.3908]
[1747594070080,3.22837,2467.9,2467.6,15.77995001]
[1747594070281,9.932,2467.9,2467.7,2.4408]
[1747594070584,10.74207,2467.9,2467.7,2.4408]
[1747594070784,0.81009,2467.8,2467.7,2.4408]
[1747594070986,3.22839,2467.8,2467.7,2.4408]
[1747594071282,0.81009,2467.8,2467.7,2.4408]
[1747594071875,2.4183,2468.0,2467.7,2.4408]
[1747594072082,0.6077,2468.2,2467.7,5.01980001]
[1747594072278,0.6077,2468.2,2468.1,0.80999]
[1747594072478,0.6077,2468.2,2468.1,10.76099]
[1747594072673,0.6077,2468.2,2468.1,13.33999001]
[1747594072879,0.6077,2468.2,2468.1,12.53000001]
[1747594073285,0.6077,2468.2,2468.1,13.33999001]
[1747594073489,0.6077,2468.2,2468.1,12.53000001]
[1747594073976,1.41766,2468.2,2468.1,12.53000001]
[1747594074183,1.41766,2468.2,2468.1,9.951]
[1747594074890,0.6077,2468.2,2468.1,9.951]
[1747594075079,0.6077,2468.2,2468.1,10.76099]
[1747594075281,0.6077,2468.2,2468.1,9.951]
[1747594075480,0.6077,2468.2,2468.1,12.53000001]
[1747594075984,0.6077,2468.2,2467.8,8.0007]
[1747594076182,0.81006,2467.9,2467.8,12.2427]
[1747594076489,0.81006,2467.9,2467.8,9.951]
[1747594076884,3.17196,2467.9,2467.8,9.951]
[1747594078186,0.81,2468.1,2467.8,12.53000001]
[1747594078386,0.81003,2468.0,2467.9,2.3077]
[1747594078891,0.81006,2467.9,2467.8,9.951]
[1747594079085,3.22786,2467.9,2467.8,9.951]
[1747594079987,0.81009,2467.8,2467.7,9.952]
[1747594080382,3.2078,2468.8,2468.1,0.80999]
[1747594080587,0.80992,2468.4,2468.2,9.952]
[1747594080782,3.2078,2468.5,2467.8,4.7926]
[1747594080984,2.4178,2468.4,2467.8,4.7926]
[1747594081177,2.4178,2468.4,2467.5,9.952]
[1747594081178,0.81014,2467.7,2467.5,9.952]
[1747594081389,3.2078,2467.8,2467.3,2.5079]
[1747594081692,0.81022,2467.4,2467.3,9.952]
[1747594082097,0.81036,2467.0,2466.9,1.18972624]
[1747594082279,4.847,2467.3,2466.9,1.18972624]
[1747594082584,12.337,2467.3,2466.9,1.18972624]
[1747594082789,9.919,2467.7,2467.0,5.6179]
[1747594082981,12.336,2467.7,2467.3,0.81025]
[1747594083182,0.81019,2467.5,2467.4,2.4101]
[1747594083382,0.81017,2467.6,2467.4,2.4101]
[1747594083691,3.22718,2467.6,2467.4,2.4101]
[1747594083887,2.417,2467.6,2467.0,2.5055]
[1747594084089,2.417,2467.6,2466.9,13.55282624]
[1747594084090,0.81032,2467.1,2466.9,13.55282624]
[1747594084283,0.81036,2467.0,2466.9,13.55282624]
[1747594084484,0.81036,2467.0,2466.9,1.18972624]
[1747594084686,5.81036,2467.0,2466.9,1e-08]
[1747594084883,0.81055,2466.4,2466.3,3.16134265]
[1747594085086,13.93635,2466.4,2466.3,3.16134265]
[1747594085582,14.25926739,2466.4,2466.3,3.16134265]
[1747594085783,19.25926739,2466.4,2466.3,3.16134265]
[1747594085983,0.81065,2466.1,2465.6,1.85447579]
[1747594086184,18.44871739,2466.4,2465.6,1.85447579]
[1747594086185,10.72764,2466.2,2466.0,4.03278132]
[1747594086384,2.309,2466.1,2465.8,0.81073]
[1747594086585,3.2078,2466.8,2465.9,5.23459]
[1747594086789,10.72644,2466.8,2466.0,15.4405]
[1747594086994,6.42156073,2467.1,2466.0,15.4405]
[1747594087189,2.309,2467.0,2466.7,0.81044]
[1747594087383,2.40342073,2467.1,2467.0,0.81036]
[1747594087591,10.24787484,2468.0,2467.0,5.0]
[1747594087787,12.58327484,2468.0,2467.5,0.81018]
[1747594087981,0.81008,2467.9,2467.6,2.3969]
[1747594088181,3.14551,2467.8,2467.6,2.3969]
[1747594088393,2.3354,2467.8,2467.6,2.3969]
[1747594088984,0.81013,2467.7,2467.6,2.3969]
[1747594089287,2.3354,2467.8,2467.4,9.919]
[1747594089496,5.5432,2467.8,2467.1,13.1268]
[1747594089694,0.81021,2467.5,2467.2,2.3969]
[1747594090495,5.5432,2467.8,2467.2,2.3969]
[1747594090692,5.5432,2467.8,2467.5,0.81018]
[1747594090904,6.3533,2467.8,2467.6,2.4931]
[1747594091095,3.1455,2467.8,2467.6,2.4931]
[1747594091292,0.81025,2467.4,2467.1,3.2078]
[1747594091497,0.81025,2467.4,2467.2,2.4931]
[1747594091695,3.2078,2467.3,2466.4,3.2078]
[1747594091892,0.81045,2466.8,2466.7,9.918]
[1747594092190,0.81059,2466.3,2466.2,9.918]
[1747594092594,13.1208,2466.3,2465.8,9.919]
[1747594092894,2.3942,2466.2,2466.1,0.81065]
[1747594093095,9.913,2466.4,2466.2,0.8106]
[1747594093298,13.11773,2466.5,2466.3,2.468]
[1747594093595,9.913,2466.5,2466.3,2.468]
[1747594093989,12.286,2466.5,2466.3,2.468]
[1747594094398,2.373,2466.5,2466.3,2.468]
[1747594094693,2.373,2466.5,2466.4,0.81055]
[1747594094898,0.0779,2466.6,2466.5,0.81052]
[1747594095086,0.81026,2467.3,2467.0,0.81034]
[1747594095291,0.81029,2467.2,2467.1,2.468]
[1747594095688,2.373,2467.3,2467.1,3.2783]
[1747594095991,3.84511289,2467.4,2467.1,2.468]
[1747594096193,4.65535289,2467.4,2467.2,2.468]
[1747594096502,0.81026,2467.3,2467.2,2.468]
[1747594096797,0.81033,2467.1,2466.7,3.2078]
[1747594096994,0.81045,2466.7,2466.6,12.2987]
[1747594097184,5.4955,2467.0,2466.6,12.2987]
[1747594097390,9.91,2467.2,2466.6,15.5065]
[1747594097895,0.81045,2466.7,2466.6,12.2987]
[1747594098409,2.2877,2466.9,2466.6,12.2987]
[1747594098599,0.81045,2466.7,2466.6,9.919]
[1747594098789,0.81044,2466.8,2466.6,9.919]
[1747594098989,3.09815,2466.7,2466.6,9.919]
[1747594099306,12.1967,2466.7,2466.2,50.771]
[1747594099495,12.1967,2466.7,2466.3,2.4356]
[1747594099799,0.81053,2466.5,2466.3,2.4356]
[1747594099999,3.2078,2466.5,2466.1,3.2078]
[1747594100295,3.2078,2466.5,2465.9,2.4356]
[1747594100296,2.299,2466.4,2465.9,2.4356]
[1747594101086,0.81066,2466.1,2465.9,2.4356]
[1747594101291,2.299,2466.4,2465.9,2.4356]
[1747594101493,0.81038,2467.0,2466.2,3.2078]
[1747594101694,2.299,2466.9,2466.3,12.3556]
[1747594102295,3.2078,2466.7,2466.1,9.921]
[1747594102500,0.81041,2466.9,2466.2,3.2078]
[1747594102702,3.2078,2467.0,2466.2,3.2078]
[1747594102703,5.5747,2467.0,2466.2,5.6082]
[1747594103000,0.81057,2466.4,2466.3,9.921]
[1747594103795,3.2078,2466.7,2466.3,9.921]
[1747594103991,2.3669,2466.8,2466.4,2.4004]
[1747594103992,5.5747,2466.8,2466.4,2.4004]
[1747594104192,3.2078,2466.8,2466.7,0.81045]
[1747594104394,0.81044,2466.8,2466.5,4.01831]
[1747594104595,0.81045,2466.7,2466.6,2.4004]
[1747594105202,2.0261,2466.8,2466.2,3.2078]
[1747594105401,0.81062,2466.2,2466.1,9.921]
[1747594106403,0.81068,2466.0,2465.9,2.3333]
[1747594106701,0.81068,2466.0,2465.8,8.0096]
[1747594106702,0.81072,2465.9,2465.8,9.921]
[1747594106901,0.8107,2466.0,2465.8,9.921]
[1747594107205,0.81067,2466.1,2465.9,2.3333]
[1747594107406,0.81065,2466.1,2465.9,2.3333]
[1747594107897,13.1118,2466.3,2466.0,0.81067]
[1747594108097,0.81063,2466.2,2466.1,2.3333]
[1747594108299,3.2078,2466.3,2466.1,2.3333]
[1747594108612,9.903,2466.9,2466.1,10.5411]
[1747594108903,5.6887,2467.0,2466.6,0.81048]
[1747594108904,3.19012761,2466.8,2466.6,0.81048]
[1747594109206,3.19012761,2466.8,2466.7,2.2784]
[1747594110403,3.19012761,2466.8,2466.7,3.08885]
[1747594110605,2.37969761,2466.8,2466.7,3.08885]
[1747594111207,2.37969761,2466.8,2466.7,5.46665]
[1747594111407,3.19011761,2466.8,2466.7,4.6562]
[1747594111794,0.81045,2466.7,2466.6,9.922]
[1747594112000,5.89285999,2467.0,2466.6,9.922]
[1747594112001,0.65910999,2467.0,2466.6,9.922]
[1747594112200,0.65910999,2467.0,2466.9,0.81039]
[1747594112801,0.65910999,2467.0,2466.9,5.0]
[1747594113010,0.65910999,2467.0,2466.5,12.979]